bitfinex/quotes_BTCUSD_20260215
["timestamp","ask_amount","ask_price","bid_price","bid_amount"]
[1771131188251,0.025,70294.0,70287.0,0.0714397]
[1771131188736,0.07113175,70293.0,70287.0,0.00030475]
[1771131188891,0.09613175,70293.0,70287.0,0.0714416]
[1771131189411,0.07113281,70292.0,70287.0,0.00030475]
[1771131189638,0.025,70291.0,70287.0,0.00030475]
[1771131190071,0.07613018,70294.0,70288.0,0.0002]
[1771131190538,0.07113018,70294.0,70288.0,0.0002]
[1771131190942,0.005,70293.0,70288.0,0.0002]
[1771131191145,0.07113018,70294.0,70288.0,0.0002]
[1771131191373,0.07513018,70294.0,70288.0,0.0002]
[1771131191606,0.07113124,70293.0,70288.0,0.0002]
[1771131191809,0.09613124,70293.0,70288.0,0.0002]
[1771131193461,0.025,70293.0,70288.0,0.0002]
[1771131193667,0.027,70293.0,70288.0,0.0002]
[1771131194665,0.025,70293.0,70288.0,0.0002]
[1771131194785,0.026,70293.0,70288.0,0.0002]
[1771131195197,0.025,70292.0,70288.0,0.0002]
[1771131196694,0.029,70292.0,70288.0,0.0002]
[1771131196918,0.025,70292.0,70288.0,0.0002]
[1771131197326,0.028,70292.0,70288.0,0.0002]
[1771131199291,0.003,70292.0,70288.0,0.0002]
[1771131199493,0.07153002,70294.0,70288.0,0.0002]
[1771131199721,0.001,70292.0,70288.0,0.0002]
[1771131200278,0.09613286,70291.0,70288.0,0.0002]
[1771131201312,0.027,70291.0,70288.0,0.0002]
[1771131201459,0.09813299,70291.0,70288.0,0.0002]
[1771131202272,0.027,70291.0,70288.0,0.0002]
[1771131202470,0.09813316,70291.0,70288.0,0.0002]
[1771131202973,0.07113388,70290.0,70288.0,0.0002]
[1771131203428,0.09813316,70291.0,70288.0,0.0002]
[1771131203629,0.09613316,70291.0,70288.0,0.0002]
[1771131203987,0.027,70290.0,70288.0,0.0002]
[1771131204200,0.025,70290.0,70288.0,0.0002]
[1771131205323,0.002,70291.0,70288.0,0.0002]
[1771131205502,0.07313291,70291.0,70288.0,0.0002]
[1771131205721,0.025,70290.0,70288.0,0.0002]
[1771131207142,0.09613427,70290.0,70283.0,0.07133894]
[1771131207348,0.09613427,70290.0,70284.0,0.07113985]
[1771131207558,0.025,70290.0,70284.0,0.07113985]
[1771131209110,0.025,70290.0,70285.0,0.07113886]
[1771131213885,0.025,70290.0,70285.0,0.07133886]
[1771131214745,0.025,70290.0,70286.0,0.07113771]
[1771131215916,0.025,70290.0,70287.0,0.07113663]
[1771131216112,0.025,70290.0,70287.0,0.07113691]
[1771131217159,0.00012,70290.0,70286.0,0.07113726]
[1771131217335,0.00012,70290.0,70288.0,0.071135]
[1771131217538,0.0004,70291.0,70288.0,0.071135]
[1771131217701,0.0004,70291.0,70288.0,0.07121498]
[1771131217921,0.0004,70291.0,70288.0,7.998e-05]
[1771131219164,0.0004,70291.0,70288.0,0.00407998]
[1771131219680,0.0004,70291.0,70288.0,7.998e-05]
[1771131219879,0.0004,70291.0,70288.0,0.00407998]
[1771131220264,0.0004,70291.0,70288.0,0.00217998]
[1771131221028,0.0004,70291.0,70280.0,0.00012]
[1771131221229,0.07113569,70290.0,70281.0,0.0711422]
[1771131221446,0.07113566,70289.0,70282.0,0.07114188]
[1771131222512,0.00048012,70291.0,70282.0,0.0002]
[1771131222811,0.096136,70288.0,70282.0,0.0002]
[1771131222977,0.025,70286.0,70282.0,0.0032]
[1771131223312,0.025,70286.0,70282.0,0.0002]
[1771131223520,0.00048012,70291.0,70282.0,0.24773947]
[1771131223720,0.0004,70294.0,70285.0,0.17639852]
[1771131224058,0.0004,70294.0,70286.0,0.07113792]
[1771131224559,0.0004,70294.0,70287.0,0.07113691]
[1771131224736,0.0004,70294.0,70288.0,0.07113579]
[1771131226182,0.0004,70294.0,70288.0,0.007]
[1771131226384,0.07153049,70294.0,70286.0,0.07113792]
[1771131226590,0.0004,70294.0,70285.0,0.07113879]
[1771131226747,0.07113088,70293.0,70285.0,0.07113792]
[1771131226946,0.07113088,70293.0,70286.0,0.07113767]
[1771131227699,0.07152993,70294.0,70287.0,0.07113677]
[1771131229015,0.07113103,70293.0,70284.0,0.07113801]
[1771131229207,0.07152993,70294.0,70287.0,0.0711369]
[1771131229417,0.07152993,70294.0,70287.0,0.07157029]
[1771131229760,0.07152993,70294.0,70288.0,0.0002]
[1771131231155,0.00012,70300.0,70288.0,0.0002]
[1771131231279,0.0005618,70313.0,70306.0,0.07111768]
[1771131231479,0.0005618,70313.0,70306.0,0.07111695]
[1771131231706,0.07111445,70310.0,70301.0,0.07112178]
[1771131231915,0.07111566,70308.0,70300.0,0.07124359]
[1771131232451,0.07111566,70308.0,70300.0,0.24764211]
[1771131232658,0.07111667,70307.0,70306.0,0.003]
[1771131232889,0.07111667,70307.0,70300.0,0.17651852]
[1771131233207,0.07111803,70306.0,70300.0,0.17651852]
[1771131233411,0.07144966,70308.0,70300.0,0.00012]
[1771131233412,0.07112066,70304.0,70300.0,0.00012]
[1771131233923,0.000334,70305.0,70297.0,0.34076]
[1771131234126,0.000334,70305.0,70290.0,0.00012]
[1771131234127,0.07113286,70291.0,70290.0,0.00012]
[1771131234352,0.07113286,70291.0,70289.0,4.5e-05]
[1771131234353,0.025,70290.0,70289.0,4.5e-05]
[1771131234668,0.02543339,70290.0,70283.0,0.07114009]
[1771131235043,0.02543339,70290.0,70284.0,0.07113961]
[1771131235396,0.02543339,70290.0,70283.0,0.07113901]
[1771131235570,0.02543339,70290.0,70285.0,0.07113847]
[1771131235811,0.02534657,70290.0,70285.0,0.07113847]
[1771131236242,0.02534657,70290.0,70286.0,0.07113726]
[1771131236440,0.02534657,70290.0,70285.0,0.07113847]
[1771131237914,0.02534657,70290.0,70285.0,0.07133847]
[1771131238294,0.07129686,70296.0,70285.0,0.07133847]
[1771131238295,0.09625345,70296.0,70289.0,0.07113488]
[1771131238831,0.02512539,70296.0,70289.0,0.07113488]
[1771131239180,0.09625326,70296.0,70289.0,0.07113488]
[1771131239398,0.09625339,70296.0,70289.0,0.07113405]
[1771131240125,0.02512539,70296.0,70290.0,0.07113302]
[1771131240321,0.09625323,70296.0,70290.0,0.07113302]
[1771131240522,0.07112898,70295.0,70288.0,0.07113572]
[1771131240724,0.07112996,70294.0,70286.0,0.07113792]
[1771131240928,0.17878166,70295.0,70285.0,0.0002]
[1771131241147,0.02495659,70287.0,70285.0,0.0002]
[1771131241349,0.02479418,70287.0,70285.0,0.0002]
[1771131241701,0.28452824,70292.0,70285.0,0.0002]
[1771131241702,0.0960133,70286.0,70285.0,0.0002]
[1771131243601,0.07114095,70283.0,70282.0,0.0002]
[1771131243800,0.09601633,70283.0,70282.0,0.00063339]
[1771131244366,0.09569148,70283.0,70282.0,0.00063339]
[1771131244958,0.02487538,70283.0,70282.0,0.00063339]
[1771131245197,0.09601633,70283.0,70282.0,0.00463339]
[1771131245396,0.02455051,70283.0,70282.0,0.00063339]
[1771131246109,0.09569146,70283.0,70282.0,0.00063339]
[1771131246317,0.02455051,70283.0,70282.0,0.00063339]
[1771131247165,0.02471295,70288.0,70277.0,0.0002]
[1771131247412,0.07114499,70280.0,70277.0,0.0002]
[1771131247670,0.00043339,70288.0,70260.0,0.00012]
[1771131247671,0.34076,70285.0,70260.0,0.00012]
[1771131247866,0.02471295,70268.0,70260.0,0.00012]
[1771131248094,0.02471295,70267.0,70260.0,0.00012]
[1771131248306,0.02471295,70265.0,70260.0,0.00012]
[1771131248685,0.07115392,70271.0,70262.0,0.07116149]
[1771131249020,0.07115761,70267.0,70260.0,0.00012]
[1771131249247,0.07115817,70266.0,70260.0,0.00012]
[1771131249556,0.07115817,70266.0,70260.0,0.00020012]
[1771131249755,0.07115964,70265.0,70260.0,0.00020012]
[1771131250124,0.07115964,70265.0,70260.0,0.01320012]
[1771131250125,0.07116073,70264.0,70260.0,0.01320012]
[1771131250307,0.07116288,70262.0,70260.0,0.01320012]
[1771131250510,0.07116124,70263.0,70260.0,0.00020012]
[1771131250727,0.07116032,70264.0,70260.0,0.00020012]
[1771131250929,0.07116032,70264.0,70260.0,0.01040012]
[1771131251146,0.07115926,70265.0,70260.0,0.00040012]
[1771131251498,0.09587103,70268.0,70260.0,0.01140012]
[1771131251716,0.09587103,70268.0,70260.0,0.00040012]
[1771131252165,0.09587103,70268.0,70260.0,0.01240012]
[1771131252476,0.07115845,70266.0,70260.0,0.01240012]
[1771131252913,0.07116081,70264.0,70260.0,0.01240012]
[1771131253470,0.07116081,70264.0,70260.0,0.00040012]
[1771131253648,0.07116261,70262.0,70260.0,0.00840012]
[1771131253812,0.07116261,70262.0,70260.0,0.00040012]
[1771131254017,0.07116323,70261.0,70260.0,0.00040012]
[1771131254235,0.07116323,70261.0,70260.0,0.00540012]
[1771131254432,0.07116217,70263.0,70260.0,0.00040012]
[1771131254851,0.07116226,70262.0,70260.0,0.00340012]
[1771131255084,0.06926226,70262.0,70260.0,0.00040012]
[1771131255495,0.06926226,70262.0,70260.0,0.00340012]
[1771131256614,0.06926226,70262.0,70260.0,0.00040012]
[1771131256814,0.06926226,70262.0,70260.0,0.00340012]
[1771131257722,0.09588103,70257.0,70254.0,0.0002102]
[1771131258025,0.07116858,70256.0,70254.0,0.00026398]
[1771131258419,0.09588103,70257.0,70254.0,0.00026398]
[1771131259130,0.02471295,70257.0,70254.0,0.00026398]
[1771131259894,0.09588029,70257.0,70254.0,0.00826398]
[1771131260418,0.02471295,70257.0,70254.0,0.00026398]
[1771131260624,0.02471295,70257.0,70252.0,0.000245]
[1771131260819,0.02471295,70257.0,70252.0,0.00027409]
[1771131261119,0.02471295,70257.0,70254.0,0.007]
[1771131261325,0.07116534,70259.0,70246.0,4.5e-05]
[1771131261326,0.02471295,70255.0,70246.0,4.5e-05]
[1771131261670,0.09589138,70246.0,70245.0,1e-08]
[1771131261937,0.07119166,70233.0,70230.0,0.00012]
[1771131262112,0.07118877,70236.0,70230.0,0.00016335]
[1771131262483,0.07118888,70236.0,70230.0,0.00016335]
[1771131262710,0.0711869,70238.0,70230.0,0.00016335]
[1771131263011,0.07118957,70235.0,70230.0,0.00016335]
[1771131263169,0.07118892,70236.0,70230.0,0.00016335]
[1771131263378,0.07218892,70236.0,70230.0,0.00516335]
[1771131263713,0.32282847,70240.0,70230.0,0.00016335]
[1771131264011,0.07119122,70234.0,70230.0,0.00816335]
[1771131264211,0.07118784,70237.0,70230.0,0.07135706]
[1771131264361,0.07118666,70238.0,70230.0,0.00016335]
[1771131264558,0.07318859,70236.0,70230.0,0.00816335]
[1771131264783,0.07318952,70236.0,70230.0,0.00816335]
[1771131264982,0.07119042,70235.0,70230.0,0.00816335]
[1771131265225,0.07119097,70234.0,70230.0,0.00816335]
[1771131265421,0.09790252,70236.0,70230.0,0.00816335]
[1771131265598,0.02471295,70232.0,70230.0,0.00816335]
[1771131265929,0.02471295,70232.0,70230.0,0.00036335]
[1771131266074,0.07119248,70233.0,70230.0,0.00836335]
[1771131266275,0.29811552,70240.0,70230.0,0.00036335]
[1771131266625,0.09590759,70230.0,70222.0,0.0002]
[1771131266788,0.09590759,70230.0,70222.0,0.00029265]
[1771131266976,0.09590759,70230.0,70223.0,0.07120146]
[1771131267170,0.02471295,70230.0,70222.0,0.00029265]
[1771131268114,0.07120275,70222.0,70221.0,0.0001189]
[1771131268323,0.07104638,70216.0,70215.0,1e-08]
[1771131268525,0.09583445,70211.0,70210.0,1e-08]
[1771131268893,0.02471295,70210.0,70203.0,0.07122195]
[1771131269069,0.09605775,70210.0,70201.0,0.07122318]
[1771131269273,0.09605775,70210.0,70200.0,0.00012]
[1771131269274,0.00012988,70210.0,70209.0,0.07121594]
[1771131269689,0.00012988,70210.0,70206.0,0.26791077]
[1771131270025,0.00012988,70210.0,70202.0,0.07122269]
[1771131270026,0.07134555,70210.0,70202.0,0.07122269]
[1771131270231,0.07134555,70210.0,70200.0,0.46760929]
[1771131270232,0.00312988,70210.0,70201.0,0.018]
[1771131270615,0.00012988,70210.0,70200.0,0.46760929]
[1771131270745,0.00312988,70210.0,70206.0,0.016]
[1771131270952,0.00312988,70210.0,70206.0,0.08721874]
[1771131271150,0.00312988,70210.0,70207.0,0.07121749]
[1771131271374,0.02471295,70215.0,70206.0,0.016]
[1771131271591,0.34076,70219.0,70211.0,0.071213]
[1771131271834,0.34076,70219.0,70209.0,0.29811552]
[1771131272005,0.34076,70219.0,70215.0,0.07120982]
[1771131272209,0.34076,70219.0,70213.0,0.07121187]
[1771131272711,0.07120903,70216.0,70207.0,0.07121796]
[1771131272913,0.0712107,70215.0,70209.0,0.017]
[1771131273111,0.0712107,70215.0,70208.0,0.07121667]
[1771131273285,0.07120903,70216.0,70208.0,0.07121667]
[1771131273286,0.07120913,70216.0,70208.0,0.07121667]
[1771131273471,0.07120913,70216.0,70213.0,0.014]
[1771131273667,0.07120913,70216.0,70208.0,0.07121667]
[1771131273867,0.07120913,70216.0,70209.0,0.07121518]
[1771131274079,0.07120798,70217.0,70210.0,0.07121481]
[1771131274278,0.07120885,70216.0,70209.0,0.07121572]
[1771131274497,0.07120985,70215.0,70207.0,0.07121789]
[1771131275011,0.07120985,70215.0,70208.0,0.07121617]
[1771131275215,0.09592381,70214.0,70209.0,0.008]
[1771131275421,0.34076,70219.0,70206.0,0.00043395]
[1771131275422,0.02471295,70213.0,70206.0,0.00043395]
[1771131275596,0.02471295,70218.0,70206.0,0.00043395]
[1771131275780,0.002,70215.0,70210.0,0.07121421]
[1771131275981,0.02471295,70216.0,70208.0,0.07121682]
[1771131276165,0.07121005,70215.0,70208.0,0.07121682]
[1771131276364,0.002,70214.0,70209.0,0.009]
[1771131276608,0.07121005,70215.0,70208.0,0.07121682]
[1771131276819,0.02471295,70216.0,70209.0,0.07121586]
[1771131277025,0.002,70215.0,70210.0,0.08021415]
[1771131277224,0.02671295,70215.0,70210.0,0.08021415]
[1771131277778,0.002,70215.0,70210.0,0.009]
[1771131277984,1e-08,70215.0,70214.0,0.07121086]
[1771131278182,0.36547295,70219.0,70214.0,0.07121086]
[1771131278608,0.36547295,70219.0,70215.0,0.07120933]
[1771131278815,0.00012,70230.0,70211.0,0.16937377]
[1771131279112,0.3408,70226.0,70220.0,0.07120447]
[1771131279309,0.41199926,70226.0,70218.0,0.07120585]
[1771131279511,0.07119978,70225.0,70218.0,0.07120585]
[1771131279854,0.02471295,70225.0,70221.0,0.07120362]
[1771131280188,0.3408,70226.0,70213.0,0.16937377]
[1771131280386,0.3408,70226.0,70221.0,0.07120322]
[1771131280609,0.0711976,70229.0,70222.0,0.07120254]
[1771131280789,0.0711976,70229.0,70222.0,0.07120257]
[1771131280992,0.02471295,70227.0,70215.0,0.0002]
[1771131281192,0.09591597,70222.0,70215.0,0.07140958]
[1771131281415,0.07120302,70222.0,70218.0,0.004]
[1771131281616,0.07120588,70219.0,70215.0,0.0002]
[1771131281961,0.07120588,70219.0,70209.0,0.28486112]
[1771131281962,0.28480508,70224.0,70210.0,0.000165]
[1771131282126,0.02471295,70213.0,70210.0,0.000165]
[1771131282715,0.02471295,70213.0,70210.0,0.00012]
[1771131283313,0.02671295,70213.0,70210.0,0.07233477]
[1771131283536,0.02671295,70213.0,70210.0,0.00112]
[1771131284307,0.02471295,70213.0,70207.0,0.000245]
[1771131284711,0.02671295,70213.0,70210.0,0.001]
[1771131285068,0.0712116,70214.0,70206.0,0.00043395]
[1771131285269,0.003,70213.0,70210.0,0.001]
[1771131285468,0.02471295,70212.0,70206.0,0.00043395]
[1771131285638,0.09592591,70212.0,70206.0,0.00043395]
[1771131285840,0.02471295,70212.0,70210.0,0.001]
[1771131286039,0.002,70213.0,70210.0,0.001]
[1771131286299,0.02471295,70212.0,70206.0,0.07165268]
[1771131286700,0.02471295,70212.0,70206.0,0.00043395]
[1771131286841,0.02471295,70212.0,70206.0,0.07165273]
[1771131287458,0.02471295,70212.0,70210.0,0.002]
[1771131287665,0.07121534,70210.0,70206.0,0.00063395]
[1771131287871,0.02471295,70209.0,70206.0,0.00063395]
[1771131288068,0.02471295,70209.0,70206.0,0.00263395]
[1771131288293,0.07121695,70208.0,70202.0,4.5e-05]
[1771131288501,0.07165085,70208.0,70202.0,4.5e-05]
[1771131288679,0.07165085,70208.0,70201.0,0.07122317]
[1771131289033,0.07165085,70208.0,70202.0,0.07122298]
[1771131289221,0.0004339,70208.0,70206.0,0.002]
[1771131289374,7.358e-05,70208.0,70206.0,0.002]
[1771131290390,7.358e-05,70208.0,70204.0,0.07122089]
[1771131290830,0.00207358,70208.0,70204.0,0.07122089]
[1771131291027,0.00207358,70208.0,70205.0,0.07121989]
[1771131291192,7.358e-05,70208.0,70205.0,0.07121989]
[1771131291377,0.00207358,70208.0,70206.0,0.003]
[1771131291782,7.358e-05,70208.0,70204.0,0.07122089]
[1771131292489,7.358e-05,70208.0,70204.0,0.003]
[1771131292490,0.00207358,70208.0,70204.0,0.003]
[1771131293295,0.00207358,70208.0,70204.0,0.07422099]
[1771131293505,0.00207358,70208.0,70204.0,0.003]
[1771131294080,0.00207358,70208.0,70204.0,0.07422092]
[1771131294488,7.358e-05,70208.0,70204.0,0.07122092]
[1771131294807,0.00307358,70208.0,70204.0,0.07822092]
[1771131295010,7.358e-05,70208.0,70204.0,0.07122092]
[1771131295215,7.358e-05,70208.0,70202.0,0.07122104]
[1771131295364,0.00307358,70208.0,70204.0,0.006]
[1771131295775,0.00307358,70208.0,70204.0,0.0062]
[1771131295985,0.00307358,70208.0,70204.0,0.07742082]
[1771131296310,7.358e-05,70208.0,70204.0,0.07142082]
[1771131296513,0.02471295,70209.0,70204.0,0.07142082]
[1771131297580,0.003,70208.0,70204.0,0.08142082]
[1771131297781,0.09592712,70211.0,70204.0,0.07142082]
[1771131298002,0.003,70209.0,70204.0,0.08142082]
[1771131298230,0.02771295,70209.0,70204.0,0.08142082]
[1771131298453,0.02471295,70209.0,70204.0,0.0002]
[1771131298632,0.02471295,70209.0,70204.0,0.0102]
[1771131298797,0.003,70208.0,70204.0,0.0102]
[1771131299459,0.0045505,70209.0,70204.0,0.07142099]
[1771131300233,0.0045505,70209.0,70204.0,0.0002]
[1771131300433,0.02391281,70208.0,70204.0,0.0002]
[1771131300872,0.02391281,70208.0,70204.0,0.08842075]
[1771131301085,0.02391281,70208.0,70205.0,0.07121941]
[1771131301847,0.02791281,70208.0,70205.0,0.07121941]
[1771131302056,0.02391281,70208.0,70204.0,0.0002]
[1771131302255,0.17774631,70206.0,70191.0,0.0002]
[1771131302569,0.07123209,70194.0,70186.0,0.07123915]
[1771131302775,0.4364188,70194.0,70186.0,0.07123915]
[1771131303177,0.4364188,70194.0,70187.0,0.07144149]
[1771131303480,0.4364188,70194.0,70187.0,0.0002035]
[1771131303481,0.07123396,70192.0,70187.0,0.0002035]
[1771131303700,0.02391281,70191.0,70187.0,0.0002035]
[1771131304595,0.02391281,70191.0,70187.0,0.09144166]
[1771131304803,0.02391281,70191.0,70187.0,0.0202035]
[1771131305017,0.02391281,70191.0,70189.0,0.0002]
[1771131305217,0.02891281,70191.0,70187.0,0.0192035]
[1771131305420,0.02891281,70191.0,70185.0,0.07124009]
[1771131305624,0.02391281,70191.0,70185.0,0.07124009]
[1771131306618,0.09514728,70191.0,70184.0,0.07124073]
[1771131306822,0.07523447,70191.0,70187.0,0.006]
[1771131307026,0.02391281,70190.0,70185.0,0.07124028]
[1771131307452,0.02391281,70190.0,70185.0,0.07824028]
[1771131307660,0.02391281,70190.0,70185.0,0.07124028]
[1771131308082,0.02791281,70190.0,70185.0,0.07824028]
[1771131308278,0.02391281,70190.0,70185.0,0.07124028]
[1771131308679,0.02791281,70190.0,70185.0,0.007]
[1771131309232,0.02791281,70190.0,70185.0,0.07824029]
[1771131309432,0.004,70190.0,70185.0,0.07824029]
[1771131310031,0.0712341,70192.0,70185.0,0.07124029]
[1771131310232,0.005,70190.0,70185.0,0.07334029]
[1771131310396,0.0712341,70192.0,70184.0,0.0003861]
[1771131310814,0.02391281,70189.0,70185.0,0.003]
[1771131311080,0.0712341,70192.0,70185.0,0.07124016]
[1771131311280,0.005,70190.0,70185.0,0.07524016]
[1771131311499,0.0712341,70192.0,70185.0,0.07124016]
[1771131311910,0.0712341,70192.0,70185.0,0.07144016]
[1771131312138,0.007,70189.0,70185.0,0.07544016]
[1771131313313,0.07123436,70191.0,70185.0,0.0002]
[1771131313530,0.09520314,70190.0,70185.0,0.0042]
[1771131313942,0.09520314,70190.0,70185.0,0.0002]
[1771131314220,0.005,70189.0,70185.0,0.0042]
[1771131314469,0.07123553,70190.0,70185.0,0.0002]
[1771131314731,0.02396761,70189.0,70185.0,0.0002]
[1771131314972,0.02396761,70189.0,70185.0,0.0042]
[1771131315217,0.02396761,70189.0,70185.0,0.0002]
[1771131315445,0.02896761,70189.0,70185.0,0.0082]
[1771131316618,0.07123927,70186.0,70180.0,0.00012]
[1771131316982,0.17855331,70184.0,70170.0,0.00044]
[1771131317185,0.39332697,70182.0,70170.0,0.00044]
[1771131317378,0.07124384,70182.0,70175.0,0.0712498]
[1771131317589,0.07124057,70185.0,70178.0,0.07124728]
[1771131317786,0.34084,70184.0,70177.0,0.07124804]
[1771131318281,0.34584,70184.0,70177.0,0.07124804]
[1771131318483,0.07124319,70183.0,70175.0,0.09618557]
[1771131318695,0.17855331,70183.0,70172.0,1e-08]
[1771131318896,0.34084,70184.0,70175.0,0.07124969]
[1771131318897,0.07124408,70182.0,70175.0,0.07124969]
[1771131319119,0.07124408,70182.0,70173.0,0.07125247]
[1771131319520,0.07124408,70182.0,70174.0,0.07125146]
[1771131319779,0.34084,70184.0,70173.0,0.07125146]
[1771131319954,0.34084,70183.0,70179.0,0.02493611]
[1771131320183,0.07123927,70186.0,70179.0,0.09618249]
[1771131320503,0.005,70182.0,70179.0,0.07124638]
[1771131320709,0.005,70182.0,70180.0,0.02493611]
[1771131320926,0.07124132,70184.0,70177.0,0.07144794]
[1771131320927,0.07124132,70184.0,70177.0,0.0002]
[1771131321138,0.07624232,70183.0,70179.0,0.007]
[1771131321556,0.07124232,70183.0,70177.0,0.0002]
[1771131321763,0.0762435,70182.0,70179.0,0.007]
[1771131323006,0.0712435,70182.0,70177.0,0.0002]
[1771131323180,0.0712435,70182.0,70179.0,0.005]
[1771131323524,0.20252092,70187.0,70177.0,0.0002]
[1771131323525,0.07124553,70180.0,70177.0,0.0002]
[1771131323722,0.07124664,70179.0,70177.0,0.0002]
[1771131324566,0.07124721,70180.0,70177.0,0.0002]
[1771131324716,0.07124675,70179.0,70177.0,0.0002]
[1771131325995,0.08024675,70179.0,70177.0,0.0042]
[1771131326130,0.009,70179.0,70177.0,0.0042]
[1771131326969,0.07124347,70182.0,70177.0,0.0002]
[1771131327193,0.009,70179.0,70177.0,0.0042]
[1771131327313,0.07124347,70182.0,70177.0,0.0002]
[1771131327743,0.006,70179.0,70177.0,0.0042]
[1771131328560,0.07724676,70179.0,70177.0,0.0042]
[1771131329071,0.07124731,70180.0,70177.0,0.0002]
[1771131329274,0.07124731,70180.0,70177.0,0.0042]
[1771131329448,0.07124731,70180.0,70177.0,0.0002]
[1771131329889,0.008,70179.0,70177.0,0.0042]
[1771131330117,0.23462699,70181.0,70177.0,0.0002]
[1771131330270,0.07124536,70180.0,70177.0,0.0002]
[1771131330451,0.08424536,70180.0,70177.0,0.0042]
[1771131330656,0.07124536,70180.0,70177.0,0.0002]
[1771131330859,0.17867331,70190.0,70177.0,0.0042]
[1771131331082,0.00012,70190.0,70180.0,0.29872217]
[1771131331290,0.00012,70190.0,70181.0,0.02493611]
[1771131331523,0.07123625,70189.0,70183.0,0.07124215]
[1771131331727,0.07123625,70189.0,70182.0,0.0712431]
[1771131331962,0.07135546,70190.0,70181.0,0.09618044]
[1771131331963,0.07123771,70188.0,70181.0,0.09618044]
[1771131332359,0.07123826,70187.0,70181.0,0.02493611]
[1771131332569,0.07123897,70187.0,70180.0,0.07124519]
[1771131332974,0.07123897,70187.0,70181.0,0.003]
[1771131333257,0.07123897,70187.0,70180.0,0.07124519]
[1771131333686,0.07123942,70186.0,70180.0,0.004]
[1771131334010,0.24979273,70186.0,70179.0,0.07124577]
[1771131334151,0.07124198,70184.0,70177.0,0.07144823]
[1771131335161,0.07124198,70184.0,70181.0,0.01]
[1771131335590,0.07124198,70184.0,70177.0,0.07144823]
[1771131335795,0.003,70184.0,70178.0,0.02493611]
[1771131336196,0.07123834,70187.0,70180.0,0.07124469]
[1771131336423,0.003,70184.0,70181.0,0.007]
[1771131336831,0.07123834,70187.0,70180.0,0.07124469]
[1771131337027,0.003,70184.0,70180.0,0.07124469]
[1771131337406,0.003,70184.0,70180.0,0.0961808]
[1771131338110,0.003,70184.0,70182.0,0.07124299]
[1771131338302,0.07123648,70189.0,70180.0,0.02493611]
[1771131338459,0.07123648,70189.0,70181.0,0.002]
[1771131338460,0.071239,70187.0,70181.0,0.002]
[1771131338631,0.005,70184.0,70181.0,0.002]
[1771131338836,0.071239,70187.0,70180.0,0.09618126]
[1771131339045,0.004,70184.0,70180.0,0.09818126]
[1771131339245,0.004,70184.0,70180.0,0.07324515]
[1771131339471,0.07123929,70186.0,70180.0,0.07124515]
[1771131339703,0.002,70184.0,70181.0,0.07324415]
[1771131340003,0.0480678,70187.0,70181.0,0.07124433]
[1771131341337,0.002,70184.0,70181.0,0.07124433]
[1771131341555,0.00038041,70184.0,70181.0,0.07124433]
[1771131341761,0.0480678,70187.0,70181.0,0.07124433]
[1771131341961,0.0500678,70187.0,70181.0,0.07324433]
[1771131342165,0.0480678,70187.0,70181.0,0.07124433]
[1771131342543,0.002,70184.0,70181.0,0.004]
[1771131342760,0.0712397,70186.0,70180.0,0.07124511]
[1771131343191,0.0712397,70186.0,70181.0,0.006]
[1771131343993,0.0732385,70187.0,70181.0,0.006]
[1771131344142,0.0712385,70187.0,70180.0,0.07124461]
[1771131344555,0.002,70184.0,70181.0,0.002]
[1771131344761,0.0712385,70187.0,70180.0,0.07124461]
[1771131345323,0.0713385,70187.0,70181.0,0.002]
[1771131345543,0.0713385,70187.0,70176.0,0.28499477]
[1771131345544,0.20733853,70179.0,70134.0,0.6374]
[1771131345753,0.20733853,70179.0,70136.0,0.02134105]
[1771131345754,0.29872217,70150.0,70136.0,0.02134105]
[1771131345965,0.29872217,70150.0,70133.0,0.27512]
[1771131345966,0.29860217,70150.0,70134.0,0.16600163]
[1771131346187,0.07128037,70146.0,70134.0,0.19468777]
[1771131346401,0.07128369,70143.0,70134.0,0.05007315]
[1771131346619,0.07128485,70142.0,70135.0,0.31949299]
[1771131346831,0.07128525,70141.0,70135.0,0.29810598]
[1771131347041,0.07128525,70141.0,70135.0,0.27684885]
[1771131347248,0.07128422,70142.0,70135.0,0.25546184]
[1771131347481,0.07128803,70138.0,70135.0,0.2126628]
[1771131347681,0.07128718,70139.0,70136.0,0.39095315]
[1771131347879,0.07128718,70139.0,70136.0,0.40395315]
[1771131348126,0.07128718,70139.0,70136.0,0.39095315]
[1771131348538,0.2851283,70144.0,70136.0,0.39095315]
[1771131348733,0.07128718,70139.0,70137.0,0.16604759]
[1771131349349,0.07428718,70139.0,70137.0,0.16604759]
[1771131349568,0.07428718,70139.0,70136.0,0.34988]
[1771131349856,0.07428718,70139.0,70137.0,0.05007315]
[1771131350098,0.07428718,70139.0,70137.0,0.04817315]
[1771131350231,0.07128803,70138.0,70137.0,0.04817315]
[1771131350433,0.16562981,70161.0,70138.0,0.16604759]
[1771131350631,0.025,70157.0,70138.0,0.16604759]
[1771131350830,0.002,70139.0,70138.0,0.16604759]
[1771131351073,0.06946035,70145.0,70137.0,0.16604759]
[1771131351479,0.004,70138.0,70137.0,0.16804759]
[1771131351796,0.06946035,70145.0,70137.0,0.16604759]
[1771131351944,0.06946035,70145.0,70138.0,0.04817315]
[1771131352142,0.002,70139.0,70138.0,0.05117315]
[1771131352342,0.002,70139.0,70138.0,0.21722074]
[1771131352622,0.06946035,70145.0,70138.0,0.21422074]
[1771131353182,0.00012,70140.0,70138.0,0.04805315]
[1771131353402,0.00012,70140.0,70138.0,0.21410074]
[1771131354046,0.00012,70140.0,70138.0,0.04805315]
[1771131354392,0.00712,70140.0,70138.0,0.05005315]
[1771131354794,0.00012,70140.0,70138.0,0.0302174]
[1771131354926,0.00712,70140.0,70138.0,0.00869012]
[1771131355341,0.00012,70140.0,70137.0,0.0002]
[1771131355541,0.008,70140.0,70138.0,0.002]
[1771131356721,0.07128412,70142.0,70137.0,0.0002]
[1771131357526,0.003,70140.0,70138.0,0.002]
[1771131358322,0.07128412,70142.0,70137.0,0.0002]
[1771131358723,0.07428412,70142.0,70137.0,0.0022]
[1771131359126,0.0712853,70141.0,70137.0,0.0022]
[1771131359877,0.0712853,70141.0,70137.0,0.0002]
[1771131360188,0.003,70140.0,70138.0,0.002]
[1771131360893,0.0712853,70141.0,70137.0,0.0002]
[1771131361118,0.00012,70150.0,70137.0,0.16824759]
[1771131361347,0.0712771,70149.0,70142.0,0.07128322]
[1771131361606,0.0004,70145.0,70141.0,0.07128425]
[1771131361843,0.0004,70145.0,70138.0,0.07328701]